bitfinex/quotes_SOLUSD_20260203
["timestamp","ask_amount","ask_price","bid_price","bid_amount"]
[1770162479975,0.23939536,97.576,97.53,8.42103509]
[1770162480173,0.23939536,97.601,97.541,0.54795836]
[1770162480359,0.23939536,97.609,97.551,0.54795836]
[1770162480562,0.23939536,97.609,97.562,0.54795836]
[1770162480764,8.42103509,97.58,97.531,0.54795836]
[1770162480970,0.25808214,97.579,97.531,0.54795836]
[1770162481577,0.25808214,97.569,97.531,0.54795836]
[1770162482306,8.42103509,97.56,97.531,0.54795836]
[1770162482465,8.42103509,97.58,97.531,0.54795836]
[1770162482787,8.42103509,97.58,97.541,0.54795836]
[1770162482981,8.42103509,97.57,97.541,0.54795836]
[1770162483180,8.42103509,97.57,97.53,0.54795836]
[1770162483375,8.42103509,97.56,97.53,0.54795836]
[1770162483882,8.42103509,97.55,97.511,0.54795836]
[1770162484071,8.42103509,97.54,97.511,0.54795836]
[1770162484267,8.42103509,97.56,97.511,0.54795836]
[1770162484889,8.42103509,97.57,97.521,0.54795836]
[1770162485068,8.42103509,97.6,97.551,0.54795836]
[1770162485269,8.42103509,97.6,97.487,5.36086188]
[1770162485270,0.33070738,97.609,97.561,0.54795836]
[1770162485464,8.42103509,97.61,97.561,0.54795836]
[1770162485969,8.42103509,97.62,97.571,0.54795836]
[1770162486169,8.76938044,97.62,97.571,0.54795836]
[1770162486770,8.42103509,97.63,97.581,0.54795836]
[1770162486981,0.36578073,97.629,97.581,0.54795836]
[1770162487573,8.42103509,97.62,97.581,0.54795836]
[1770162487973,5.73942836,97.64,97.581,0.54795836]
[1770162488171,8.42103509,97.64,97.591,0.54795836]
[1770162488377,8.42103509,97.65,97.601,0.54795836]
[1770162488577,8.42103509,97.63,97.601,0.54795836]
[1770162489674,8.42103509,97.63,97.581,0.54795836]
[1770162490289,0.41689446,97.609,97.561,0.54795836]
[1770162491087,8.85457757,97.62,97.571,0.54795836]
[1770162491289,0.43354248,97.619,97.571,0.54795836]
[1770162491889,0.43354248,97.619,97.529,1.02533605]
[1770162491890,8.87103437,97.63,97.581,0.54795836]
[1770162492191,0.44999928,97.629,97.581,0.54795836]
[1770162492368,5.55434025,97.66,97.528,29.90869982]
[1770162492369,8.87103437,97.64,97.591,0.54795836]
[1770162492776,0.44999928,97.639,97.591,0.54795836]
[1770162493187,8.42103509,97.62,97.58,0.54795836]
[1770162493390,0.46626706,97.623,97.581,0.54795836]
[1770162493589,5.55434025,97.66,97.591,0.54795836]
[1770162493590,0.46626706,97.636,97.591,0.54795836]
[1770162493787,8.42103509,97.63,97.591,0.54795836]
[1770162494188,0.46626706,97.636,97.591,0.54795836]
[1770162494698,0.48234799,97.659,97.62,8.42103509]
[1770162494995,0.48234799,97.659,97.611,0.54795836]
[1770162496792,0.2,97.66,97.621,0.54795836]
[1770162496988,0.2,97.66,97.62,8.42103509]
[1770162496989,0.2,97.67,97.642,0.54795836]
[1770162497190,0.2,97.67,97.6,8.42103509]
[1770162497191,0.51625081,97.707,97.661,0.54795836]
[1770162497578,0.2,97.71,97.691,0.54795836]
[1770162497805,0.2,97.74,97.701,0.54795836]
[1770162498095,0.2,97.74,97.69,8.42103509]
[1770162498096,0.51625081,97.739,97.69,8.42103509]
[1770162498299,0.51625081,97.729,97.686,0.54795836]
[1770162499098,0.51625081,97.729,97.645,28.48]
[1770162499099,0.51625081,97.719,97.665,0.54795836]
[1770162499296,0.51625081,97.719,97.645,28.48]
[1770162499297,0.51625081,97.737,97.691,0.54795836]
[1770162499599,0.51625081,97.737,97.7,8.42103509]
[1770162499792,0.2,97.74,97.711,0.54795836]
[1770162500501,0.2,97.77,97.721,0.54795836]
[1770162500696,0.2,97.77,97.73,9.13317275]
[1770162500697,0.70930236,97.769,97.73,9.13317275]
[1770162500880,0.70930236,97.769,97.73,0.71213766]
[1770162501201,0.70930236,97.769,97.68,8.42103509]
[1770162501202,0.70930236,97.749,97.701,0.71213766]
[1770162502201,0.70930236,97.749,97.711,0.71213766]
[1770162502382,0.70930236,97.749,97.72,8.42103509]
[1770162502702,0.70930236,97.763,97.721,0.71213766]
[1770162503196,0.90930236,97.77,97.731,0.71213766]
[1770162503810,0.70930236,97.769,97.72,9.13317275]
[1770162503983,0.70930236,97.769,97.721,0.71213766]
[1770162504903,0.70930236,97.769,97.731,0.71213766]
[1770162506201,0.70930236,97.769,97.684,25.59249509]
[1770162506202,0.70930236,97.802,97.751,0.71213766]
[1770162506576,0.70930236,97.802,97.727,10.23255714]
[1770162506577,0.70930236,97.816,97.771,0.71213766]
[1770162506782,0.70930236,97.829,97.781,0.71213766]
[1770162507702,8.42103509,97.84,97.752,10.22996971]
[1770162507703,0.70930236,97.841,97.8,8.42103509]
[1770162507901,0.70930236,97.841,97.801,0.71213766]
[1770162508206,0.70930236,97.839,97.801,0.71213766]
[1770162509010,0.70930236,97.829,97.781,0.71213766]
[1770162509189,0.70930236,97.819,97.771,0.71213766]
[1770162510402,8.42103509,97.81,97.771,0.71213766]
[1770162510607,9.13033745,97.81,97.771,0.71213766]
[1770162510792,8.42103509,97.8,97.771,0.71213766]
[1770162511107,0.70930236,97.809,97.751,0.71213766]
[1770162511508,0.70930236,97.809,97.761,0.71213766]
[1770162513903,4.27527085,97.848,97.761,0.71213766]
[1770162513904,0.70930236,97.799,97.761,0.71213766]
[1770162515702,8.42103509,97.78,97.748,0.71213766]
[1770162515888,8.42103509,97.8,97.751,0.71213766]
[1770162516089,0.70930236,97.799,97.751,0.71213766]
[1770162516688,0.70930236,97.799,97.76,8.42103509]
[1770162516906,0.70930236,97.799,97.751,0.71213766]
[1770162517992,8.42103509,97.8,97.751,0.71213766]
[1770162518193,8.42103509,97.83,97.781,0.71213766]
[1770162518395,0.70930236,97.832,97.791,0.71213766]
[1770162519298,0.70930236,97.869,97.821,0.71213766]
[1770162520523,9.07069892,97.84,97.809,0.71213766]
[1770162520713,8.36139656,97.83,97.791,0.71213766]
[1770162521499,9.07069892,97.82,97.78,0.71213766]
[1770162521722,0.70930236,97.819,97.78,0.71213766]
[1770162522224,0.70930236,97.819,97.78,9.07353422]
[1770162523715,0.70930236,97.819,97.78,0.71213766]
[1770162524226,0.70930236,97.833,97.791,0.71213766]
[1770162524411,0.70930236,97.844,97.801,0.71213766]
[1770162524813,10.05924556,97.85,97.801,0.71213766]
[1770162525013,0.70930236,97.857,97.811,0.71213766]
[1770162525315,0.70930236,97.869,97.821,0.71213766]
[1770162525627,10.05924556,97.84,97.791,0.71213766]
[1770162525802,0.70930236,97.829,97.78,10.77138322]
[1770162526122,0.70930236,97.829,97.781,0.71213766]
[1770162526616,10.76854792,97.82,97.781,0.71213766]
[1770162527000,0.70930236,97.819,97.781,0.71213766]
[1770162532332,0.95469947,97.83,97.781,0.71213766]
[1770162532523,0.95469947,97.83,97.79,10.05924556]
[1770162533703,0.95469947,97.83,97.781,0.71213766]
[1770162533704,0.95469947,97.829,97.781,0.71213766]
[1770162534620,0.95469947,97.829,97.79,10.05924556]
[1770162535213,0.95469947,97.829,97.781,0.71213766]
[1770162536624,0.97136464,97.819,97.781,0.71213766]
[1770162536817,0.97136464,97.809,97.761,1.00689461]
[1770162537013,0.97136464,97.799,97.761,1.00689461]
[1770162537329,0.97136464,97.779,97.742,1.00689461]
[1770162538607,0.97136464,97.779,97.731,1.00689461]
[1770162539226,0.97136464,97.791,97.74,10.05924556]
[1770162539424,0.97136464,97.791,97.713,28.42]
[1770162539425,10.05924556,97.82,97.771,1.00689461]
[1770162539615,0.97136464,97.809,97.771,1.00689461]
[1770162539812,10.05924556,97.8,97.771,1.00689461]
[1770162540019,0.97136464,97.799,97.76,1.00689461]
[1770162540325,0.97136464,97.799,97.713,54.00507219]
[1770162540326,0.97136464,97.779,97.738,1.00689461]
[1770162540730,0.97136464,97.779,97.73,10.05924556]
[1770162540731,0.97136464,97.779,97.74,10.05924556]
[1770162540939,0.97136464,97.779,97.741,1.00689461]
[1770162541442,0.97136464,97.789,97.741,1.00689461]
[1770162541621,10.6064995,97.827,97.771,1.00689461]
[1770162541622,10.05924556,97.82,97.771,1.00689461]
[1770162542010,10.05924556,97.82,97.736,4.27527085]
[1770162542011,0.97136464,97.789,97.751,1.00689461]
[1770162542220,0.97136464,97.779,97.73,10.05924556]
[1770162542627,10.05924556,97.78,97.73,10.05924556]
[1770162543030,0.97136464,97.779,97.73,10.05924556]
[1770162544233,0.97136464,97.779,97.731,1.00689461]
[1770162545029,0.97136464,97.769,97.731,1.00689461]
[1770162545617,0.97136464,97.769,97.714,1.00689461]
[1770162545824,10.05924556,97.75,97.714,1.00689461]
[1770162546525,0.97136464,97.769,97.721,1.00689461]
[1770162546723,0.97136464,97.779,97.731,1.00689461]
[1770162546938,10.05924556,97.77,97.731,1.00689461]
[1770162547132,10.05924556,97.76,97.71,10.05924556]
[1770162547310,10.05924556,97.75,97.711,1.00689461]
[1770162547515,0.97136464,97.749,97.711,1.00689461]
[1770162547715,0.97136464,97.759,97.711,1.00689461]
[1770162548217,0.97136464,97.759,97.721,1.00689461]
[1770162549018,10.05924556,97.78,97.731,1.00689461]
[1770162549218,0.97136464,97.782,97.741,1.00689461]
[1770162550344,5.34728447,97.787,97.741,1.00689461]
[1770162550842,6.31864911,97.787,97.741,1.00689461]
[1770162551337,0.97136464,97.786,97.741,1.00689461]
[1770162552435,0.97136464,97.786,97.74,10.05924556]
[1770162552436,0.97136464,97.786,97.751,1.00689461]
[1770162553046,5.34728447,97.787,97.751,1.00689461]
[1770162554037,5.34728447,97.787,97.74,1.00689461]
[1770162554038,0.97136464,97.786,97.74,1.00689461]
[1770162554235,0.97136464,97.779,97.74,1.00689461]
[1770162555338,5.34728447,97.787,97.723,28.44]
[1770162555339,10.05924556,97.77,97.723,28.44]
[1770162555536,0.97136464,97.759,97.721,1.00689461]
[1770162561633,0.97136464,97.759,97.711,1.13319707]
[1770162561829,11.13446939,97.75,97.711,1.13319707]
[1770162563252,1.07522383,97.749,97.711,1.13319707]
[1770162563832,1.07522383,97.729,97.688,1.13319707]
[1770162564036,1.07522383,97.709,97.667,1.13319707]
[1770162564453,1.07522383,97.689,97.651,1.13319707]
[1770162565339,1.07522383,97.699,97.651,1.13319707]
[1770162565538,1.07522383,97.699,97.661,1.13319707]
[1770162565751,11.13446939,97.69,97.651,1.13319707]
[1770162566057,1.07522383,97.689,97.651,1.13319707]
[1770162567057,25.57561572,97.75,97.651,1.13319707]
[1770162567058,1.07522383,97.699,97.651,1.13319707]
[1770162567539,1.07522383,97.709,97.661,1.13319707]
[1770162567858,5.36086188,97.781,97.691,1.13319707]
[1770162567859,1.07522383,97.745,97.691,1.13319707]
[1770162568060,5.36086188,97.781,97.65,10.05924556]
[1770162568061,1.07522383,97.729,97.681,1.13319707]
[1770162568240,1.07522383,97.719,97.681,1.13319707]
[1770162568440,10.05924556,97.71,97.681,1.13319707]
[1770162568950,1.07522383,97.719,97.681,1.13319707]
[1770162569653,1.07522383,97.709,97.661,1.13319707]
[1770162570660,1.07522383,97.699,97.661,1.13319707]
[1770162572464,1.07522383,97.679,97.631,1.13319707]
[1770162576247,1.07522383,97.709,97.661,1.13319707]
[1770162576447,1.07522383,97.709,97.671,1.13319707]
[1770162576861,1.07522383,97.699,97.653,28.46]
[1770162577255,1.07522383,97.699,97.654,1.13319707]
[1770162579168,1.07522383,97.689,97.654,1.13319707]
[1770162584556,5.35216796,97.697,97.63,0.1]
[1770162584557,6.42739179,97.697,97.661,1.13319707]
[1770162584753,6.42739179,97.697,97.66,10.09210226]
[1770162584754,5.35216796,97.697,97.671,1.13319707]
[1770162584952,1.07522383,97.706,97.671,1.13319707]
[1770162585970,5.35113334,97.717,97.681,1.13319707]
[1770162586264,1.07522383,97.716,97.681,1.13319707]
[1770162586871,1.07522383,97.726,97.691,1.13319707]
[1770162587254,1.07522383,97.739,97.691,1.13319707]
[1770162587462,1.07522383,97.739,97.701,1.13319707]
[1770162591373,5.34939812,97.744,97.721,1.25180414]
[1770162591583,1.21847101,97.756,97.73,10.09210226]
[1770162591953,1.21847101,97.765,97.731,1.25180414]
[1770162594278,1.21847101,97.759,97.722,1.25180414]
[1770162594479,1.21847101,97.749,97.716,28.46]
[1770162595556,5.34791839,97.779,97.721,1.20430727]
[1770162595557,1.22158269,97.759,97.721,1.20430727]
[1770162595753,1.22158269,97.759,97.72,10.09210226]
[1770162595958,1.22158269,97.749,97.716,28.46]
[1770162596870,1.22158269,97.749,97.703,1.20430727]
[1770162597178,1.22158269,97.749,97.71,11.29640953]
[1770162597661,1.22158269,97.749,97.701,1.20430727]
[1770162597862,1.22158269,97.739,97.691,1.20430727]
[1770162598261,1.22158269,97.729,97.671,1.20430727]
[1770162598558,1.22158269,97.719,97.671,1.20430727]
[1770162598754,10.09210226,97.72,97.671,1.20430727]
[1770162598755,1.22158269,97.709,97.671,1.20430727]
[1770162600484,1.22158269,97.709,97.68,10.09210226]
[1770162600687,1.22158269,97.709,97.68,11.29640953]
[1770162600864,1.22158269,97.721,97.691,1.20430727]
[1770162601060,1.22158269,97.739,97.701,1.20430727]
[1770162601363,1.22158269,97.739,97.71,10.09210226]
[1770162602282,1.22158269,97.739,97.71,11.29640953]
[1770162602475,1.22158269,97.759,97.72,10.09210226]
[1770162602985,1.22158269,97.759,97.73,10.09210226]
[1770162603476,1.22158269,97.778,97.731,1.20430727]
[1770162603792,1.30768934,97.849,97.773,4.27527085]
[1770162604088,1.30768934,97.849,97.82,10.09210226]
[1770162604491,1.30768934,97.849,97.83,10.09210226]
[1770162604780,1.30768934,97.849,97.82,10.09210226]
[1770162605282,1.30768934,97.849,97.81,10.09210226]
[1770162605785,1.30768934,97.839,97.79,10.09210226]
[1770162606760,1.30768934,97.839,97.8,10.09210226]
[1770162607670,1.30768934,97.839,97.789,28.44]
[1770162607671,1.30768934,97.839,97.79,10.09210226]
[1770162608773,1.30768934,97.829,97.79,10.09210226]
[1770162610284,1.30768934,97.849,97.8,10.09210226]
[1770162610969,1.30768934,97.839,97.791,0.03861422]
[1770162611387,1.30768934,97.839,97.8,10.09210226]
[1770162611567,1.30768934,97.839,97.81,10.09210226]
[1770162611767,0.2,97.85,97.83,10.09210226]
[1770162613785,0.2,97.85,97.82,10.09210226]
[1770162615276,0.2,97.85,97.82,10.16812487]
[1770162615474,0.2,97.85,97.83,10.09210226]
[1770162615879,0.2,97.85,97.821,0.07602261]
[1770162615880,0.2,97.85,97.84,10.09210226]
[1770162616484,0.2,97.86,97.84,10.09210226]
[1770162616788,1.34931358,97.884,97.85,10.09210226]
[1770162617090,1.34931358,97.899,97.86,10.09210226]
[1770162617417,1.34931358,97.889,97.843,28.42]
[1770162617577,1.34931358,97.879,97.843,28.42]
[1770162617776,1.34931358,97.879,97.84,10.09210226]
[1770162618188,1.34931358,97.879,97.83,10.09210226]
[1770162619079,1.34931358,97.879,97.83,10.11328566]
[1770162619777,1.34931358,97.879,97.841,0.0211834]
[1770162619975,1.34931358,97.879,97.85,10.09210226]
[1770162620503,1.34931358,97.895,97.861,0.02808295]
[1770162621505,0.2,97.9,97.861,0.02808295]
[1770162621669,1.54931358,97.9,97.87,10.09210226]
[1770162622006,1.54931358,97.9,97.846,28.42]
[1770162622007,1.34931358,97.899,97.85,10.09210226]
[1770162622171,1.34931358,97.889,97.846,28.42]
[1770162622701,1.34931358,97.879,97.846,28.42]
[1770162622895,1.34931358,97.879,97.83,10.14056992]
[1770162623274,1.34931358,97.879,97.84,10.09210226]
[1770162625783,1.34931358,97.869,97.824,28.42]
[1770162626398,1.34931358,97.869,97.83,10.09210226]
[1770162626586,1.34931358,97.869,97.84,10.09210226]
[1770162628174,1.34931358,97.879,97.841,0.08778785]
[1770162628376,1.34931358,97.879,97.803,10.22459857]
[1770162628377,1.34931358,97.889,97.86,10.09210226]
[1770162635202,1.34931358,97.889,97.851,0.08778785]
[1770162635409,1.34931358,97.889,97.86,10.09210226]
[1770162636695,1.34931358,97.889,97.851,0.08778785]
[1770162637105,1.34931358,97.889,97.85,10.09210226]
[1770162637412,1.34931358,97.889,97.86,10.09210226]
[1770162638286,1.34931358,97.889,97.86,10.23965987]
[1770162638484,0.2,97.9,97.88,10.09210226]
[1770162638683,0.05244239,97.9,97.89,10.09210226]
[1770162638982,1.42309238,97.928,97.89,10.09210226]
[1770162639212,1.42309238,97.928,97.9,10.09210226]
[1770162639588,1.62309238,97.92,97.884,28.4]
[1770162639789,1.42309238,97.909,97.86,10.09210226]
[1770162640109,1.42309238,97.899,97.85,10.09210226]
[1770162640291,1.42309238,97.899,97.86,10.09210226]
[1770162644409,1.42309238,97.899,97.852,0.02204036]
[1770162645390,1.42309238,97.899,97.86,10.04806919]
[1770162648510,1.42309238,97.899,97.852,0.02204036]
[1770162648712,1.42309238,97.899,97.825,103.2]
[1770162648713,1.42309238,97.859,97.82,10.04806919]
[1770162649011,1.42309238,97.859,97.81,10.10453243]
[1770162649396,1.42309238,97.859,97.81,0.05646324]
[1770162649592,1.42309238,97.859,97.81,10.10453243]
[1770162650192,1.42309238,97.859,97.82,10.04806919]
[1770162652917,1.42309238,97.859,97.81,10.04806919]
[1770162653119,1.42309238,97.849,97.782,4.27527085]
[1770162653416,12.76742548,97.898,97.757,28.4]
[1770162653417,1.42309238,97.839,97.791,0.07919559]
[1770162653600,1.42309238,97.874,97.83,10.04806919]
[1770162653798,1.42309238,97.874,97.84,10.04806919]
[1770162654619,1.42309238,97.874,97.83,10.04806919]
[1770162655000,1.42309238,97.874,97.84,10.04806919]
[1770162658420,1.42309238,97.874,97.85,10.04806919]
[1770162659005,1.42309238,97.874,97.86,10.04806919]
[1770162659221,1.42309238,97.909,97.86,10.04806919]
[1770162659828,1.42309238,97.909,97.87,10.04806919]
[1770162660327,1.42309238,97.909,97.88,10.04806919]
[1770162661308,1.42309238,97.909,97.871,0.1129435]
[1770162661504,0.2,97.92,97.9,10.04806919]
[1770162661724,0.2,97.92,97.91,10.04806919]
[1770162662115,1.42309238,97.938,97.91,10.04806919]
[1770162662317,1.42309238,97.938,97.92,10.04806919]
[1770162662517,1.42309238,97.938,97.894,28.4]
[1770162662827,1.42309238,97.938,97.91,10.04806919]
[1770162663407,10.04806919,97.93,97.894,28.4]
[1770162663607,1.34819833,97.929,97.894,28.4]
[1770162663833,1.34819833,97.929,97.9,10.04806919]
[1770162666820,1.34819833,97.929,97.894,28.4]
[1770162667021,1.34819833,97.929,97.891,1.33695929]
[1770162668711,1.34819833,97.939,97.901,1.33695929]
[1770162668916,1.34819833,97.939,97.91,10.04806919]
[1770162669440,1.34819833,97.939,97.92,10.04806919]
[1770162670019,1.34819833,97.939,97.911,1.33695929]
[1770162671543,1.34819833,97.939,97.888,28.4]
[1770162671544,1.34819833,97.949,97.92,10.04806919]
[1770162671720,0.2,97.99,97.881,103.2]
[1770162671721,1.34819833,97.958,97.93,10.04806919]
[1770162671915,1.34819833,97.967,97.931,1.33695929]
[1770162672132,1.34819833,97.967,97.94,10.04806919]
[1770162674824,5.33734145,97.972,97.951,1.33695929]
[1770162675138,5.36086188,97.984,97.844,52.78023346]
[1770162675344,1.34819833,97.959,97.916,1.33695929]
[1770162675942,1.34819833,97.981,97.941,1.33695929]
[1770162676350,10.04806919,97.95,97.9,1.33695929]
[1770162676640,1.34819833,97.949,97.911,1.33695929]
[1770162677222,1.34819833,97.969,97.93,10.04806919]
[1770162677423,1.34819833,97.969,97.94,11.38502848]
[1770162678948,1.34819833,97.969,97.94,1.33695929]
[1770162679925,5.33668665,97.982,97.913,1.33695929]
[1770162679926,1.34819833,97.959,97.913,1.33695929]
[1770162680941,1.34819833,97.959,97.894,4.27527085]
[1770162680942,1.34819833,97.959,97.921,1.44697092]
[1770162683254,1.34819833,97.959,97.894,32.65527085]
[1770162683429,2.30134542,97.916,97.901,1.44697092]
[1770162684543,1.50389475,97.955,97.91,10.04806919]
[1770162684740,1.50389475,97.955,97.92,10.04806919]
[1770162685345,1.50389475,97.955,97.878,5.36086188]
[1770162685346,1.50389475,97.955,97.91,10.04806919]
[1770162688141,5.33735704,97.973,97.91,10.04806919]
[1770162688142,1.52532943,97.949,97.91,10.04806919]
[1770162688449,1.52532943,97.949,97.9,4.01465432]
[1770162688952,1.52532943,97.949,97.901,0.02363797]
[1770162689746,1.52532943,97.957,97.911,0.02363797]
[1770162696540,5.33735704,97.973,97.941,0.05550125]
[1770162696839,1.72532943,97.99,97.951,0.05550125]
[1770162697151,1.52532943,97.989,97.943,0.05550125]
[1770162698758,1.52532943,97.989,97.951,0.0641417]
[1770162699159,1.52532943,97.979,97.942,28.38]
[1770162699340,1.52532943,97.969,97.942,28.38]
[1770162699952,1.52532943,97.969,97.933,0.06838763]
[1770162702063,0.2,97.99,97.941,0.08083506]
[1770162702064,1.52532943,97.98,97.941,0.08083506]
[1770162703862,4.21465432,97.99,97.899,0.08488926]
[1770162703863,1.52532943,97.959,97.899,0.08488926]
[1770162704061,1.52532943,97.949,97.901,0.08889689]
[1770162705848,1.52532943,97.929,97.894,0.09285849]
[1770162710054,1.52532943,97.929,97.895,0.1119943]
[1770162711950,1.52532943,97.929,97.897,0.11934445]
[1770162712757,1.52532943,97.94,97.901,0.12295633]
[1770162712956,1.52532943,97.953,97.92,10.0408101]
[1770162713148,1.52532943,97.953,97.921,0.12652672]
[1770162718573,1.52532943,97.953,97.911,0.14710417]
[1770162719177,1.52532943,97.953,97.913,0.15039721]
[1770162721786,1.57849792,97.949,97.913,0.15039721]
[1770162723704,1.57849792,97.919,97.863,0.16319541]
[1770162723981,10.2408101,98.0,97.864,28.38]
[1770162723982,1.57849792,97.909,97.864,28.38]
[1770162724297,1.57849792,97.909,97.865,0.16630362]
[1770162724590,1.57849792,97.909,97.864,28.38]
[1770162724591,1.57849792,97.909,97.88,10.0408101]
[1770162724768,40.79953476,98.041,97.87,0.16630362]
[1770162724769,1.57849792,97.919,97.9,10.0408101]
[1770162724971,1.57849792,97.919,97.89,10.0408101]
[1770162725283,1.57849792,97.919,97.891,28.38]
[1770162725662,1.57849792,97.909,97.87,0.16630362]
[1770162725983,1.57849792,97.909,97.86,10.21322344]
[1770162726287,1.57849792,97.909,97.87,10.0408101]
[1770162726593,1.57849792,97.909,97.871,0.17241334]
[1770162726973,1.57849792,97.909,97.872,28.38]
[1770162727576,1.57849792,97.909,97.872,28.55541567]
[1770162727874,1.57849792,97.909,97.872,28.38]
[1770162728073,1.57849792,97.899,97.862,28.38]
[1770162728583,4.01890809,97.89,97.862,28.38]
[1770162728791,1.57849792,97.889,97.862,28.38]
[1770162730007,1.57849792,97.889,97.825,10.22226494]
[1770162730008,1.57849792,97.869,97.818,0.18421733]
[1770162730187,1.57849792,97.869,97.84,4.01890809]
[1770162730377,1.57849792,97.869,97.841,0.18421733]
[1770162731394,1.57849792,97.889,97.851,0.18708408]
[1770162731569,1.57849792,97.889,97.86,4.01890809]
[1770162731971,1.57849792,97.889,97.859,0.18708408]
[1770162732185,1.57849792,97.899,97.859,0.18708408]
[1770162732386,1.57849792,97.899,97.86,4.01890809]
[1770162732683,1.57849792,97.899,97.861,0.1899179]
[1770162733473,1.57849792,97.919,97.881,0.19271918]
[1770162733676,1.57849792,97.919,97.88,4.01890809]
[1770162733677,1.57849792,97.919,97.89,4.21162727]
[1770162734503,1.57849792,97.919,97.891,0.19548828]
[1770162734671,4.01890809,97.94,97.891,0.19548828]
[1770162734672,1.57849792,97.939,97.891,0.19548828]
[1770162735699,1.57849792,97.939,97.901,0.19822557]
[1770162736771,1.57849792,97.949,97.911,0.20093142]
[1770162736976,1.57849792,97.949,97.912,0.20360619]
[1770162737178,51.49610337,98.041,97.895,4.27527085]
[1770162737179,1.57849792,97.969,97.921,0.20360619]
[1770162737988,1.57849792,97.959,97.913,28.4]
[1770162738176,1.57849792,97.949,97.913,28.4]
[1770162738376,1.57849792,97.939,97.896,0.20625024]
[1770162738782,1.57849792,97.939,97.9,4.22515833]
[1770162738978,1.57849792,97.95,97.901,0.20886392]
[1770162739177,1.57849792,97.95,97.911,0.20886392]
[1770162739890,1.57849792,97.95,97.92,4.01890809]
[1770162740278,1.57849792,97.939,97.891,0.21144758]
[1770162740485,1.57849792,97.929,97.882,0.21144758]
[1770162740683,4.01890809,97.95,97.882,0.21144758]
[1770162740684,4.01890809,97.92,97.882,0.21144758]
[1770162740991,1.60536736,97.919,97.882,0.21144758]
[1770162741690,5.33731027,97.974,97.901,1.6186891]
[1770162741892,4.01890809,97.95,97.91,4.01890809]
[1770162742093,5.33731027,97.974,97.941,1.6186891]
[1770162742397,0.2,97.99,97.951,1.6186891]
[1770162742694,0.2,97.99,97.961,1.6186891]
[1770162743396,4.01890809,98.01,97.961,1.6186891]
[1770162743787,1.60536736,98.009,97.961,1.6186891]
[1770162745693,1.60536736,97.999,97.959,28.4]
[1770162746487,1.60536736,97.999,97.96,1.6186891]
[1770162746997,1.60536736,97.999,97.961,1.6186891]
[1770162748688,1.60536736,97.989,97.959,28.4]
[1770162748887,1.60536736,97.979,97.934,1.6186891]
[1770162749188,1.60536736,97.979,97.936,1.6186891]
[1770162749797,1.60536736,98.023,97.936,1.6186891]
[1770162750005,1.60536736,97.999,97.951,1.6186891]
[1770162750181,1.60536736,97.999,97.96,10.02690478]
[1770162752090,1.60536736,97.999,97.96,11.64559388]
[1770162752903,1.60536736,97.999,97.961,1.6186891]
[1770162753497,10.02690478,98.01,97.961,1.6186891]
[1770162753498,11.63227214,98.01,97.961,1.6186891]
[1770162753808,1.60536736,98.019,97.981,1.6186891]
[1770162754793,1.60536736,97.999,97.944,1.6186891]
[1770162755001,1.60536736,97.969,97.925,1.6186891]
[1770162756202,1.60536736,97.969,97.931,1.6186891]
[1770162756390,1.60536736,97.979,97.941,1.6186891]
[1770162757394,1.60536736,97.979,97.943,1.6186891]
[1770162758682,1.60536736,97.979,97.942,28.38]
[1770162758888,1.60536736,97.969,97.938,28.38]
[1770162759117,1.60536736,97.959,97.938,26.76805504]
[1770162759292,1.60536736,97.959,97.914,1.6186891]
[1770162759293,1.60536736,97.949,97.92,28.38]
[1770162759812,1.60536736,97.976,97.931,1.6186891]
[1770162760186,1.60536736,97.976,97.933,1.6186891]
[1770162760690,1.60536736,97.976,97.941,1.6186891]
[1770162760886,1.60536736,97.969,97.933,1.6186891]
[1770162761507,1.60536736,97.959,97.933,1.6186891]
[1770162763392,1.60536736,97.979,97.933,1.6186891]
[1770162764912,1.60536736,97.969,97.933,1.6186891]
[1770162766707,1.60536736,97.959,97.924,1.6186891]
[1770162768109,1.60536736,97.959,97.924,1.6186891]
[1770162768887,4.27527085,98.015,97.924,1.6186891]
[1770162768888,1.60536736,97.999,97.925,1.6186891]
[1770162769092,1.60536736,97.989,97.941,1.6186891]
[1770162770602,1.60536736,97.989,97.943,1.52648733]
[1770162772020,1.45723532,98.009,97.951,1.52648733]
[1770162772190,1.45723532,98.009,97.95,10.02972648]
[1770162772191,1.45723532,98.009,97.961,1.52648733]
[1770162772395,10.02972648,98.0,97.961,1.52648733]
[1770162773793,5.32928114,98.013,97.961,1.52648733]
[1770162774419,1.45723532,98.012,97.961,1.52648733]
[1770162774613,1.45723532,98.012,97.97,10.02972648]
[1770162774819,1.45723532,98.012,97.952,28.38]
[1770162774820,1.45723532,98.012,97.971,1.52648733]
[1770162775316,1.45247885,98.029,97.981,1.47426638]
[1770162775506,1.45247885,98.029,97.983,1.47426638]
[1770162775907,1.45247885,98.019,97.983,1.47426638]
[1770162776106,11.48220533,98.01,97.983,1.47426638]
[1770162776408,1.45247885,98.01,97.983,1.47426638]
[1770162776811,11.48220533,98.01,97.983,1.47426638]